Cogmind - Beta 14 @@@ ROGUE MODE // 2024.08.22 @ 04:06:51 // Winter2019/RPGLIKE Player: Toaster Result: Self-destructed Performance ------------- Evolutions (7) 3500 Regions Visited (12) 2400 Robots Destroyed (149) 745 Value Destroyed (5555) 5555 Prototype IDs (3) 60 Alien Tech Used (0) 0 Bonus (1036) 1036 TOTAL SCORE: 13296 Bonus ------- High Alert Combat Kills 1036 Cogmind --------- Core Integrity 272/2100 Matter 314/500 Energy 33/670 System Corruption 11% Temperature Cool (-90) Movement Flying (31) Location -3/Research Parts ------- > --- POWER (3) -------- Angular Momentum Engine (fused) Light Antimatter Reactor > --- PROPULSION (5) --- Biomechanical Wings Biomechanical Wings Biomechanical Wings Field Propulsion Array > --- UTILITY (5) ------ Improved Cryofiber Web Advanced Weight Redist. System Advanced Targeting Computer Layered Medium Armor Plating Improved Force Field > --- WEAPON (3) ------- Gamma Rifle Gamma Rifle > --- INVENTORY (2) ---- (None) Peak State ------------ > --- POWER ------------ Angular Momentum Engine Light Antimatter Reactor > --- PROPULSION ------- Biomechanical Wings Biomechanical Wings Biomechanical Wings Field Propulsion Array > --- UTILITY ---------- Improved Cryofiber Web Advanced Weight Redist. System Advanced Targeting Computer Layered Medium Armor Plating Improved Force Field > --- WEAPON ----------- Gamma Rifle Gamma Rifle > --- INVENTORY -------- Heavy Shock Bomb Launcher Heavy Shock Bomb Launcher [Rating: 84] Favorites ----------- Power Angular Momentum Engine Engine Angular Momentum Engine Power Core Light Nuclear Core Reactor Light Antimatter Reactor Propulsion Biomechanical Wings Wheel Compact Wheel Hover Unit Hover Unit Flight Unit Biomechanical Wings Utility Advanced Weight Redist. System Device Advanced Weight Redist. System Processor Target Analyzer Hackware Hacking Suite Protection Centrium Medium Armor Plating Weapon Improved EM Pulse Cannon Energy Gun Improved Arc Projector Energy Cannon Improved EM Pulse Cannon Ballistic Gun Heavy Assault Rifle Launcher Heavy Shock Bomb Launcher Build | -11 -10 -9 -8 -7 -6 -6 -6 -6 -6 -5 -4 -3 ------- Run | Yrd Mat Mat Mat Fac Fac Ext Cet Arc Hub Fac Fac Res Slots Evolved 12 | 1 . 2 3 2 . . . . . 2 1 1 Power 2 | . . . 1 1 . . . . . . . . Propulsion 4 | 1 . . 1 . . . . . . 1 . 1 Utility 4 | . . 1 1 1 . . . . . 1 . . Weapon 2 | . . 1 . . . . . . . . 1 . Parts Attached 83 | 4 6 5 19 3 14 5 1 . 6 4 2 14 Power 16 | 1 1 . 3 1 7 . . . 1 . . 2 Engine 7 | 1 1 . . 1 2 . . . 1 . . 1 Core 8 | . . . 3 . 5 . . . . . . . Reactor 1 | . . . . . . . . . . . . 1 Propulsion 23 | 2 4 1 8 . 3 3 . . . 1 . 1 Treads . | . . . . . . . . . . . . . Leg . | . . . . . . . . . . . . . Wheel 2 | 2 . . . . . . . . . . . . Hover 2 | . 2 . . . . . . . . . . . Flight 19 | . 2 1 8 . 3 3 . . . 1 . 1 Utility 21 | . 1 1 3 2 4 1 1 . 3 2 . 3 Device 15 | . . 1 3 2 4 . . . 2 2 . 1 Storage . | . . . . . . . . . . . . . Processor 2 | . . . . . . 1 . . . . . 1 Hackware 1 | . 1 . . . . . . . . . . . Protection 3 | . . . . . . . 1 . 1 . . 1 Artifact . | . . . . . . . . . . . . . Weapon 23 | 1 . 3 5 . . 1 . . 2 1 2 8 Energy Gun 9 | 1 . 2 1 . . . . . 1 1 1 2 Energy Cannon 7 | . . . 4 . . 1 . . 1 . 1 . Ballistic Gun 1 | . . 1 . . . . . . . . . . Ballistic Cannon . | . . . . . . . . . . . . . Launcher 6 | . . . . . . . . . . . . 6 Special Weapon . | . . . . . . . . . . . . . Impact Weapon . | . . . . . . . . . . . . . Slashing Weapon . | . . . . . . . . . . . . . Piercing Weapon . | . . . . . . . . . . . . . Special Melee Weapon . | . . . . . . . . . . . . . Unidentified Prototypes 3 | . . . 1 . . 1 1 . . . . . Corrupted Parts 3 | . 1 1 . . . . . . . . . 1 System Corruption 5 | . 1 3 . . . . . . . . . 1 Parts Lost 5 | . . 1 . . . . 2 . . . . 2 Power 1 | . . . . . . . . . . . . 1 Propulsion . | . . . . . . . . . . . . . Utility 2 | . . . . . . . 1 . . . . 1 Weapon 2 | . . 1 . . . . 1 . . . . . Highest Loss Streak 2 | . . 1 . . . . 2 . . . . 1 To Critical Strikes 2 | . . . . . . . 2 . . . . . Average Slot Usage (%) 91 | . 96 99 95 97 94 90 82 83 89 92 87 79 Engine 9 | . 20 15 2 5 7 8 8 8 8 14 13 10 Core 7 | . . . 14 16 12 8 8 8 7 . . . Hover 1 | . 26 . . . . . . . . . . . Flight 25 | . 5 31 30 25 25 24 25 25 25 28 27 25 Device 24 | . . 8 24 31 32 33 17 16 19 27 27 22 Processor 2 | . . . . . . . 8 8 8 7 2 6 Hackware 2 | . 17 15 4 . . . . . . . . . Energy Gun 5 | . 20 25 3 . . . . . 5 5 12 5 Energy Cannon 10 | . . . 15 16 16 16 9 8 9 8 2 1 Peak Build Rating 84 | 4 7 12 29 37 54 52 51 51 57 66 68 84 Average Rating 42 | 2 6 9 23 35 46 49 48 51 54 64 65 72 On Entrance 36 | . 4 7 12 29 37 49 50 51 51 53 66 68 Naked Turns . | . . . . . . . . . . . . . Heaviest Build 58 | 7 7 12 26 36 44 44 43 39 44 51 53 58 Greatest Support 62 | 26 26 13 36 36 47 47 47 47 47 53 53 62 Greatest Overweight (x) 2 | . 2 1 1 . 1 1 . . . . . . Average Overweight (x) . | . . . . . . . . . . . . . Largest Inventory Capacity 2 | 1 1 1 1 1 1 1 1 1 2 2 2 2 Average Capacity 1 | . 1 1 1 1 1 1 1 1 1 2 2 2 Most Carried 2 | 1 1 1 1 1 1 1 1 1 2 2 2 2 Average Carried . | . . . . 1 1 . 1 1 1 1 1 1 Final Capacity 2 | 1 1 1 1 1 1 1 1 1 2 2 2 2 Final Carried 2 | 1 . 1 1 1 1 1 1 1 2 2 1 . Class Distribution -------------------- 54% | Mutant 38% | Sprinter 3% | Scavenger-Sprinter 3% | Scavenger-Mutant Dominant Class ---------------- Mutant | -10/Materials Scavenger-Mutant | -9/Materials Sprinter | -8/Materials Sprinter | -7/Factory Mutant | -6/Factory Mutant | -6/Extension Mutant | -6/Cetus Mutant | -6/Archives Mutant | -6/Hub_04(d) Sprinter | -5/Factory Sprinter | -4/Factory Sprinter | -3/Research Resources | -11 -10 -9 -8 -7 -6 -6 -6 -6 -6 -5 -4 -3 ----------- Run | Yrd Mat Mat Mat Fac Fac Ext Cet Arc Hub Fac Fac Res Matter Collected 1636 | 240 60 50 226 28 315 78 18 . 50 50 20 501 Remotely . | . . . . . . . . . . . . . Salvage Created 6284 | . 241 729 1004 28 416 1486 242 252 608 160 337 781 Parts 357 | . 24 66 58 9 28 69 11 15 23 4 17 33 Haulers Intercepted 5 | . . . . . . . . . 3 1 . 1 Recyclers Shooed 5 | . . 1 . . . . . . 1 . 1 2 Parts Field Recycled . | . . . . . . . . . . . . . Retrieved Matter . | . . . . . . . . . . . . . Parts Self-Destructed . | . . . . . . . . . . . . . Prevented . | . . . . . . . . . . . . . Kills | -11 -10 -9 -8 -7 -6 -6 -6 -6 -6 -5 -4 -3 ------- Run | Yrd Mat Mat Mat Fac Fac Ext Cet Arc Hub Fac Fac Res Combat Hostiles Destroyed 112 | . 6 18 22 1 10 24 4 4 5 . 4 14 Guns 27 | . 4 16 3 . . . . . 1 . 3 . Cannons 40 | . . . 16 1 6 16 1 . . . . . AOE 27 | . 2 2 3 . 2 3 . . 2 . . 13 Classes Destroyed 13 | . 4 2 1 . . 4 . . 2 . . . Worker 6 | . . . . . . 1 . . 1 . 2 2 Builder 2 | . . 2 . . . . . . . . . . Tunneler 1 | . . . . . . 1 . . . . . . Hauler 5 | . . . . . . . . . 3 1 . 1 Operator 7 | . 1 . 1 1 . 2 . . 1 . . 1 Watcher 16 | . 2 1 3 . 2 2 1 . 2 1 . 2 Swarmer 38 | . 3 6 10 . 3 7 . . . . 2 7 Grunt 42 | . 3 10 5 . 6 9 . . 3 . . 6 Brawler 1 | . . . . . . . . . 1 . . . Duelist 2 | . . . 1 . 1 . . . . . . . Sentry 21 | . . 2 6 1 . 6 . 4 1 . . 1 Hunter 2 | . . . . . . . . . . . 2 . Behemoth 1 | . . . . . . 1 . . . . . . Cetus Guard 4 | . . . . . . . 4 . . . . . Guerrilla 1 | . . . . . . 1 . . . . . . Best Kill Streak 11 | . 4 11 8 1 4 7 4 2 5 2 4 8 Combat Bots Only 8 | . 3 8 7 1 4 4 4 2 4 . 3 7 Max Kills in Single Turn 5 | . 2 5 3 1 1 1 1 1 2 1 1 4 Gunslinging 1 | . . 1 . . . . . . . . . . Exploded 4 | . 2 1 2 . 1 1 . . 1 . . 4 Melee . | . . . . . . . . . . . . . Uniques/NPCs Destroyed . | . . . . . . . . . . . . . Combat | -11 -10 -9 -8 -7 -6 -6 -6 -6 -6 -5 -4 -3 -------- Run | Yrd Mat Mat Mat Fac Fac Ext Cet Arc Hub Fac Fac Res Hostile Shots Fired 946 | . 36 80 77 18 45 243 40 41 30 5 119 212 Missed 456 | . 15 34 35 14 18 134 18 24 13 1 53 97 Damage Taken 6922 | . 243 631 524 18 432 1157 551 392 300 233 723 1718 Core 5499 | . 197 522 433 13 345 940 442 263 231 185 577 1351 Absorbed by Shields 1481 | . . . . 9 158 450 43 . . 24 330 467 Redirected to Core 4112 | . 149 363 295 13 307 718 224 220 137 185 499 1002 Ignored by Resistances 189 | . . . . . . . . . . . . 189 Regen/Repaired (Parts) 16 | . . . . . 16 . . . . . . . Core Remaining (%) 80 | 100 83 69 66 90 . . . . 97 83 57 . Volleys Fired 311 | . 34 36 43 3 23 53 16 22 23 4 22 32 Largest 2 | . 1 2 2 2 2 2 2 1 2 2 2 2 Hottest 150 | . 40 85 138 138 138 138 138 69 144 134 134 150 Shots Fired 521 | . 34 65 75 6 46 106 22 21 46 8 44 48 Gun 189 | . 34 65 12 . . . . . 19 4 43 12 Cannon 296 | . . . 63 6 46 106 22 21 27 4 1 . Launcher 36 | . . . . . . . . . . . . 36 Special . | . . . . . . . . . . . . . Kinetic . | . . . . . . . . . . . . . Thermal 33 | . . 11 22 . . . . . . . . . Explosive 9 | . . . . . . . . . . . . 9 Electromagnetic 479 | . 34 54 53 6 46 106 22 21 46 8 44 39 Robot Hit Streak 33 | . 9 33 17 21 22 23 18 11 15 18 9 26 Robot Miss Streak 4 | . 4 3 2 . 1 1 1 1 1 1 1 2 Penetration Max . | . . . . . . . . . . . . . Secondary Targets 2 | . . 2 . . . . . . . . . . Max Gunslinging Chain 1 | . . 1 . . . . . . . . . . Shots Hit Robots 417 | . 24 52 56 4 35 85 20 20 36 6 35 44 Core Hits 240 | . 11 37 31 3 17 42 11 5 15 2 21 45 Critical Kills . | . . . . . . . . . . . . . Critical Parts Destroyed . | . . . . . . . . . . . . . Critical Strikes 7 | . 1 . 1 . . 2 1 1 1 . . . Burn 1 | . . . 1 . . . . . . . . . Corrupt 6 | . 1 . . . . 2 1 1 1 . . . Melee Attacks . | . . . . . . . . . . . . . Impact . | . . . . . . . . . . . . . Slashing . | . . . . . . . . . . . . . Piercing . | . . . . . . . . . . . . . Sneak Attacks . | . . . . . . . . . . . . . Combat Hostiles . | . . . . . . . . . . . . . Follow-up Attacks . | . . . . . . . . . . . . . Damage Inflicted 13714 | . 432 979 1728 109 1269 2987 697 485 1374 156 628 2870 Guns 2362 | . 358 713 210 . . . . . 349 56 576 100 Cannons 6808 | . . . 1311 109 1060 2443 513 485 735 100 52 . Explosions 4544 | . 74 266 207 . 209 544 184 . 290 . . 2770 Melee . | . . . . . . . . . . . . . Ramming . | . . . . . . . . . . . . . Kinetic . | . . . . . . . . . . . . . Thermal 2184 | . 74 366 497 . 209 544 184 . 290 . . 20 Explosive 1635 | . . . . . . . . . . . . 1635 Electromagnetic 9895 | . 358 613 1231 109 1060 2443 513 485 1084 156 628 1215 Impact . | . . . . . . . . . . . . . Slashing . | . . . . . . . . . . . . . Piercing . | . . . . . . . . . . . . . Highest Corruption 9 | . 1 3 . . 2 2 2 2 2 . 3 9 Average Corruption 2 | . 1 3 . . 2 2 2 2 1 . 3 5 Corruption Purged 1 | . . . . . . . . . 1 . . . Corruption Blocked . | . . . . . . . . . . . . . Effects 33 | . 1 2 . . 8 11 1 3 4 . 1 2 Message Errors 11 | . . 1 . . 3 3 . 1 1 . 1 1 Matter Fused 5 | . . . . . 1 2 1 . . . . 1 Heat Flow Errors 4 | . . . . . 1 1 . 1 1 . . . Energy Discharges 7 | . 1 1 . . 2 3 . . . . . . Parts Fused 1 | . . . . . . . . . 1 . . . Data Loss (minor) 3 | . . . . . 1 2 . . . . . . Alerts 1 | . . . . . . . . . 1 . . . Weapon Failures 1 | . . . . . . . . 1 . . . . Overload Shots . | . . . . . . . . . . . . . Overflow Damage 288 | . . 9 57 . 28 53 . . 65 41 . 35 Projectiles 185 | . . . 47 . 28 29 . . 40 41 . . Explosions 103 | . . 9 10 . . 24 . . 25 . . 35 Melee . | . . . . . . . . . . . . . Knockbacks . | . . . . . . . . . . . . . Impact . | . . . . . . . . . . . . . Kinetic . | . . . . . . . . . . . . . Secondary . | . . . . . . . . . . . . . Self-Inflicted Damage 363 | . . 87 30 . 60 16 . . 83 . . 87 Shots 10 | . . 2 1 . 2 1 . . 2 . . 2 Rammed . | . . . . . . . . . . . . . Targets Rammed . | . . . . . . . . . . . . . Kicked . | . . . . . . . . . . . . . Crushed . | . . . . . . . . . . . . . Highest Temperature 444 | . 78 255 444 . 175 117 . 142 24 . . 36 Average Temperature 95 | . 25 79 142 . 99 60 . 78 13 . . 20 Received Heat Transfer 1147 | . 114 234 216 4 78 220 9 45 90 . 70 67 Effects 8 | . . 1 7 . . . . . . . . . Shutdowns 1 | . . . 1 . . . . . . . . . Energy Bleed 1 | . . 1 . . . . . . . . . . Interference 2 | . . . 2 . . . . . . . . . Matter Decay 1 | . . . 1 . . . . . . . . . Short Circuit 1 | . . . 1 . . . . . . . . . Damage (minor) 1 | . . . 1 . . . . . . . . . Damage (major) 1 | . . . 1 . . . . . . . . . Siege Activations . | . . . . . . . . . . . . . Robots Corrupted 21 | . . . . . 2 5 3 4 4 . 1 2 Combat Hostiles 18 | . . . . . 2 5 3 4 2 . 1 1 Parts Fried 62 | . 3 1 8 1 10 22 5 3 5 1 . 3 Impact Corruptions . | . . . . . . . . . . . . . Robots Melted . | . . . . . . . . . . . . . Combat Hostiles . | . . . . . . . . . . . . . Parts Melted 4 | . . 3 1 . . . . . . . . . Heat Transferred 2667 | . 50 525 792 . 200 550 250 . 250 . . 50 Parts Sabotaged . | . . . . . . . . . . . . . Parts Stolen . | . . . . . . . . . . . . . Parts Stripped . | . . . . . . . . . . . . . Power Chain Reactions 19 | . 1 3 3 . 4 3 1 . 2 . . 2 Alert | -11 -10 -9 -8 -7 -6 -6 -6 -6 -6 -5 -4 -3 ------- Run | Yrd Mat Mat Mat Fac Fac Ext Cet Arc Hub Fac Fac Res Peak Influence 963 | . 290 758 853 466 486 949 614 400 382 259 275 963 Initial 531 | . . 122 319 387 228 233 531 245 140 186 126 144 Average 428 | . 113 431 581 412 361 612 596 343 271 202 147 605 Maximum Alert Level 3 | . 1 3 3 2 2 3 2 2 1 1 1 3 Low Security (%) 16 | 100 77 23 . . . . . . 24 59 57 15 Level 1 33 | . 22 31 21 58 55 8 . 65 75 40 42 16 Level 2 34 | . . 21 41 41 44 64 100 35 . . . 15 Level 3 15 | . . 23 36 . . 27 . . . . . 53 Level 4 . | . . . . . . . . . . . . . Level 5 . | . . . . . . . . . . . . . High Security . | . . . . . . . . . . . . . Max Security . | . . . . . . . . . . . . . Squads Dispatched 16 | . . 2 2 . 1 1 . . 2 3 2 3 Investigation . | . . . . . . . . . . . . . Extermination 1 | . . . . . 1 . . . . . . . Reinforcement 13 | . . 2 2 . . 1 . . 2 2 1 3 Assault . | . . . . . . . . . . . . . Garrison 2 | . . . . . . . . . . 1 1 . Intercept . | . . . . . . . . . . . . . Searches Triggered . | . . . . . . . . . . . . . Construction Impeded 2 | . . 1 . . . . . . . . . 1 Haulers Reinforced 1 | . . . . . . . . . . . . 1 Active Scanning Responses . | . . . . . . . . . . . . . Cargo Convoy Interrupts . | . . . . . . . . . . . . . Stealth | -11 -10 -9 -8 -7 -6 -6 -6 -6 -6 -5 -4 -3 --------- Run | Yrd Mat Mat Mat Fac Fac Ext Cet Arc Hub Fac Fac Res Distress Signals 17 | . . 4 4 . . 3 2 . . . 1 3 Communications Jammed . | . . . . . . . . . . . . . Distress Signals . | . . . . . . . . . . . . . Times Spotted 209 | . 11 28 32 2 22 33 8 4 9 3 19 38 Peak Tracking Total 13 | . 3 12 10 3 9 6 5 2 3 3 9 13 Tactical Retreats 23 | . 1 4 1 . 3 5 . 1 . . 4 4 Traps | -11 -10 -9 -8 -7 -6 -6 -6 -6 -6 -5 -4 -3 ------- Run | Yrd Mat Mat Mat Fac Fac Ext Cet Arc Hub Fac Fac Res Traps Triggered 9 | . . . . 2 3 1 . . 1 . 1 1 Indirectly . | . . . . . . . . . . . . . Trap Hack Attempts . | . . . . . . . . . . . . . Triggered . | . . . . . . . . . . . . . Disarmed . | . . . . . . . . . . . . . Reprogrammed 4 | . . . . . . 4 . . . . . . Reused . | . . . . . . . . . . . . . Traps Extracted . | . . . . . . . . . . . . . Installed . | . . . . . . . . . . . . . Triggered . | . . . . . . . . . . . . . Machines | -11 -10 -9 -8 -7 -6 -6 -6 -6 -6 -5 -4 -3 ---------- Run | Yrd Mat Mat Mat Fac Fac Ext Cet Arc Hub Fac Fac Res Machines Disabled 3 | . . 2 . . . . . . . . . 1 Max in Single Turn 2 | . . 2 . . . . . . . . . 1 Machines Repaired . | . . . . . . . . . . . . . Machines Dismantled . | . . . . . . . . . . . . . Machines Sabotaged . | . . . . . . . . . . . . . Overloaded Fab Kills . | . . . . . . . . . . . . . Hacking | -11 -10 -9 -8 -7 -6 -6 -6 -6 -6 -5 -4 -3 --------- Run | Yrd Mat Mat Mat Fac Fac Ext Cet Arc Hub Fac Fac Res Machines Accessed 42 | . 3 2 7 3 6 11 2 . 4 2 2 . Terminals 37 | . 3 1 6 1 5 11 2 . 4 2 2 . Fabricators 1 | . . . . 1 . . . . . . . . Repair Stations 2 | . . . 1 . 1 . . . . . . . Recycling Units 2 | . . 1 . 1 . . . . . . . . Scanalyzers . | . . . . . . . . . . . . . Garrison Access . | . . . . . . . . . . . . . Total Hacks 61 | . 5 2 11 4 10 14 3 . 6 2 4 . Successful 29 | . 4 1 6 1 5 7 1 . 2 1 1 . Failed 32 | . 1 1 5 3 5 7 2 . 4 1 3 . Catastrophic 7 | . . . . 2 . 2 . . 2 1 . . Database Lockouts . | . . . . . . . . . . . . . Manual . | . . . . . . . . . . . . . Terminals 53 | . 5 1 10 1 7 14 3 . 6 2 4 . Fabricators 2 | . . . . 2 . . . . . . . . Repair Stations 4 | . . . 1 . 3 . . . . . . . Recycling Units 2 | . . 1 . 1 . . . . . . . . Scanalyzers . | . . . . . . . . . . . . . Garrison Access . | . . . . . . . . . . . . . Terminal Hacks 24 | . 4 . 5 . 3 7 1 . 2 1 1 . Record 4 | . . . 1 . . . 1 . 2 . . . Open Door 3 | . . . . . . 3 . . . . . . Open DSF 2 | . . . . . 2 . . . . . . . Emergency Access Points 1 | . . . 1 . . . . . . . . . Alert Level 1 | . . . . . . 1 . . . . . . Unreport Threat 1 | . . . . . . . . . . . 1 . Locate Traps 4 | . 1 . 2 . . 1 . . . . . . Reprogram Traps 1 | . . . . . . 1 . . . . . . Hauler Manifests 1 | . . . . . . . . . . 1 . . Zone Layout 6 | . 3 . 1 . 1 1 . . . . . . Fabricator Hacks 1 | . . . . 1 . . . . . . . . Build 1 | . . . . 1 . . . . . . . . Repair Station Hacks 3 | . . . 1 . 2 . . . . . . . Scan Component 2 | . . . 1 . 1 . . . . . . . Repair 1 | . . . . . 1 . . . . . . . Recycling Unit Hacks 1 | . . 1 . . . . . . . . . . Retrieve Components 1 | . . 1 . . . . . . . . . . Scanalyzer . | . . . . . . . . . . . . . Garrison Access Hacks . | . . . . . . . . . . . . . Unauthorized Hacks . | . . . . . . . . . . . . . Terminals . | . . . . . . . . . . . . . Fabricators . | . . . . . . . . . . . . . Repair Stations . | . . . . . . . . . . . . . Recycling Units . | . . . . . . . . . . . . . Scanalyzers . | . . . . . . . . . . . . . Garrison Access . | . . . . . . . . . . . . . Data Cores Recovered 6 | . 1 . 1 1 . 2 . . 1 . . . Used 1 | . . . . . . 1 . . . . . . Hacking Detections 26 | . . 1 5 1 4 7 1 . 4 1 2 . Full Trace Events . | . . . . . . . . . . . . . Feedback Events . | . . . . . . . . . . . . . Feedback Blocked . | . . . . . . . . . . . . . Robot Schematics Acquired . | . . . . . . . . . . . . . Robots Built . | . . . . . . . . . . . . . Authchips . | . . . . . . . . . . . . . Time . | . . . . . . . . . . . . . Total Robot Build Rating . | . . . . . . . . . . . . . Part Schematics Acquired . | . . . . . . . . . . . . . Parts Built 2 | . . . . 2 . . . . . . . . Authchips . | . . . . . . . . . . . . . Time 47 | . . . . 47 . . . . . . . . Total Part Build Rating 10 | . . . . 10 . . . . . . . . Parts Repaired 1 | . . . . . 1 . . . . . . . Time 19 | . . . . . 19 . . . . . . . Parts Recycled . | . . . . . . . . . . . . . Recycled Matter . | . . . . . . . . . . . . . Retrieved Matter . | . . . . . . . . . . . . . Retrieved Components 9 | . . 9 . . . . . . . . . . Parts Scanalyzed . | . . . . . . . . . . . . . Part Schematics Acquired . | . . . . . . . . . . . . . Parts Damaged . | . . . . . . . . . . . . . Bothacking | -11 -10 -9 -8 -7 -6 -6 -6 -6 -6 -5 -4 -3 ------------ Run | Yrd Mat Mat Mat Fac Fac Ext Cet Arc Hub Fac Fac Res Used RIF Installer . | . . . . . . . . . . . . . Robots Hacked . | . . . . . . . . . . . . . Non-combat . | . . . . . . . . . . . . . Combat . | . . . . . . . . . . . . . Robot Hacks Applied . | . . . . . . . . . . . . . Relay Couplers Released . | . . . . . . . . . . . . . Fabnet Peak Effective % . | . . . . . . . . . . . . . Robots Rewired . | . . . . . . . . . . . . . Allies Hacked . | . . . . . . . . . . . . . Hacks Repelled . | . . . . . . . . . . . . . Allies | -11 -10 -9 -8 -7 -6 -6 -6 -6 -6 -5 -4 -3 -------- Run | Yrd Mat Mat Mat Fac Fac Ext Cet Arc Hub Fac Fac Res Total Allies 4 | . . . . . . 4 . . . . . . Largest Group 2 | . . . . . . 2 . . . . . . Highest-Rated Group 64 | . . . . . . 64 . . . . . . Highest-Rated Ally 39 | . . . . . . 39 . . . . . . Total Orders . | . . . . . . . . . . . . . Ally Attacks 13 | . . . . . . 13 . . . . . . Total Damage 331 | . . . . . . 331 . . . . . . Kills 4 | . . . . . . 4 . . . . . . Allies Corrupted . | . . . . . . . . . . . . . Allies Melted . | . . . . . . . . . . . . . Intel | -11 -10 -9 -8 -7 -6 -6 -6 -6 -6 -5 -4 -3 ------- Run | Yrd Mat Mat Mat Fac Fac Ext Cet Arc Hub Fac Fac Res Robot Analysis Total . | . . . . . . . . . . . . . Derelict Logs Recovered . | . . . . . . . . . . . . . Drone Launches . | . . . . . . . . . . . . . Drone Recoveries . | . . . . . . . . . . . . . Exploration | -11 -10 -9 -8 -7 -6 -6 -6 -6 -6 -5 -4 -3 ------------- Run | Yrd Mat Mat Mat Fac Fac Ext Cet Arc Hub Fac Fac Res Turns Passed 3814 | 51 236 251 471 289 564 635 171 120 333 97 221 375 Spaces Moved 7271 | 54 249 306 880 672 1271 1140 364 163 658 247 460 807 Core 19 | 15 4 . . . . . . . . . . . Treads . | . . . . . . . . . . . . . Legs . | . . . . . . . . . . . . . Wheels 76 | 39 37 . . . . . . . . . . . Hover 148 | . 148 . . . . . . . . . . . Flight 7028 | . 60 306 880 672 1271 1140 364 163 658 247 460 807 Fastest Speed 29 | 50 37 34 29 29 29 34 34 34 34 31 31 31 Average Speed 33 | 81 58 37 30 29 32 34 34 34 34 31 31 31 Slowest Speed 150 | 100 150 120 112 29 120 105 34 34 34 34 31 31 Overloaded Moves . | . . . . . . . . . . . . . Propulsion Burnouts . | . . . . . . . . . . . . . Robots Hopped 60 | . . 3 9 5 9 14 . . 7 . 3 10 Cave-ins Triggered . | . . . . . . . . . . . . . Exploration Rate (%) 40 | 3 49 27 58 16 27 87 75 92 50 6 15 22 Regions Visited 12 Branch Regions 4 Pre-discovered Areas . | . . . . . . . . . . . . . Known Exits Taken . | . . . . . . . . . . . . . Unknown Exits Taken 12 | 1 1 1 1 1 1 1 1 1 1 1 1 . Scrap Searched . | . . . . . . . . . . . . . Spaces Dug . | . . . . . . . . . . . . . Terrain Destroyed 198 | . 5 6 17 . 16 12 3 . 14 . . 125 Melee . | . . . . . . . . . . . . . Projectile 6 | . . . 6 . . . . . . . . . AOE 192 | . 5 6 11 . 16 12 3 . 14 . . 125 Terrain Rammed . | . . . . . . . . . . . . . Walls Destroyed . | . . . . . . . . . . . . . Machines Disabled . | . . . . . . . . . . . . . Actions | -11 -10 -9 -8 -7 -6 -6 -6 -6 -6 -5 -4 -3 --------- Run | Yrd Mat Mat Mat Fac Fac Ext Cet Arc Hub Fac Fac Res Total 8049 | 59 306 375 998 753 1361 1265 388 204 712 259 491 878 Wait 146 | . 1 10 21 35 31 38 . . 6 . 2 2 Move 7142 | 53 248 300 862 661 1252 1112 363 162 643 246 453 787 Hop 57 | . . 2 8 5 9 13 . . 7 . 3 10 Pick Up 29 | 2 3 4 5 . . 3 . . 1 3 1 7 Fast Attach 54 | 3 5 1 11 3 14 2 1 . 6 . . 8 Attach 25 | 1 1 4 4 . . 3 . . . 4 2 6 Detach 14 | . . 1 4 . . 1 . . . 2 . 6 Swap 4 | . . . 4 . . . . . . . . . Drop 61 | . 8 1 16 1 13 5 . . 4 . 1 12 Fire 311 | . 34 36 43 3 23 53 16 22 23 4 22 32 Melee . | . . . . . . . . . . . . . Ram . | . . . . . . . . . . . . . Kick . | . . . . . . . . . . . . . Crush . | . . . . . . . . . . . . . Escape Stasis 36 | . . . . 36 . . . . . . . . Rewire . | . . . . . . . . . . . . . Trap . | . . . . . . . . . . . . . Miscellaneous 170 | . 6 16 20 9 19 35 8 20 22 . 7 8 Route ------- -11/Scrapyard -10/Materials (discovered 2 exits: *Mat / [*Min]) -9/Materials -8/Materials -7/Factory -6/Factory -6/Extension (discovered 2 exits: *Fac / *Cet) -6/Cetus (discovered 2 exits: *Fac / *Arc) -6/Archives (discovered 3 exits: *Fac / *Hub x2) -6/Hub_04(d) -5/Factory -4/Factory -3/Research History --------- Turn | Location | Event 4 | -11/Scrapyard | Discovered new exit (range 16) 26 | -11/Scrapyard | Upgraded with Propulsion slot (x1) 52 | -11/Scrapyard | Entered Materials 154 | -10/Materials | Discovered new exit (range 16) 226 | -10/Materials | Discovered new exit (range 11) 288 | -10/Materials | Entered another Materials area 290 | -9/Materials | Reached level 2 314 | -9/Materials | Build established: Mutant 340 | -9/Materials | Upgraded with Weapon slot (x1) 384 | -9/Materials | Upgraded with Utility slot (x1) 391 | -9/Materials | Reached level 3 403 | -9/Materials | Core integrity fell below 50% 469 | -9/Materials | Destroyed 8 combat bots 490 | -9/Materials | Reached level 4 514 | -9/Materials | Discovered new exit (range 4) 539 | -9/Materials | Entered another Materials area 541 | -8/Materials | Reached level 5 558 | -8/Materials | Upgraded with Propulsion slot (x1) 590 | -8/Materials | Upgraded with Power slot (x1) 590 | -8/Materials | Upgraded with Utility slot (x1) 824 | -8/Materials | Reached level 6 948 | -8/Materials | Build established: Sprinter 977 | -8/Materials | Destroyed 7 combat bots 989 | -8/Materials | Discovered new exit (range 18) 997 | -8/Materials | Reached level 7 1010 | -8/Materials | Entered Factory 1010 | -7/Factory | Upgraded with Power slot (x1) 1012 | -7/Factory | Reached level 8 1061 | -7/Factory | Upgraded with Utility slot (x1) 1215 | -7/Factory | Discovered new exit (range 8) 1294 | -7/Factory | Fabricated Imp. Reaction Control System (x2) 1299 | -7/Factory | Entered another Factory area 1301 | -6/Factory | Reached level 9 1339 | -6/Factory | Repaired Adv. Weight Redist. System 1726 | -6/Factory | Reached level 10 1753 | -6/Factory | Build established: Mutant 1836 | -6/Factory | Discovered new exit (range 6) 1863 | -6/Factory | Entered Extension 1912 | -6/Extension | Reached level 11 1977 | -6/Extension | Rescued a captive Derelict 1978 | -6/Extension | Rescued a captive Derelict 2014 | -6/Extension | Spotted B-75 Beast 2046 | -6/Extension | Destroyed B-75 Beast 2050 | -6/Extension | Spotted B-75 Beast 2223 | -6/Extension | Reached level 12 2349 | -6/Extension | Discovered new exit (range 16) 2349 | -6/Extension | Discovered new exit (range 16) 2362 | -6/Extension | Rescued a captive Derelict 2402 | -6/Extension | Rescued a captive Derelict 2473 | -6/Extension | Reached level 13 2498 | -6/Extension | Entered Cetus 2504 | -6/Cetus | Spotted Cetus Guard 2505 | -6/Cetus | Spotted Cetus Guard 2507 | -6/Cetus | Spotted Cetus Guard 2508 | -6/Cetus | Spotted Cetus Guard 2514 | -6/Cetus | Discovered new exit (range 16) 2529 | -6/Cetus | Destroyed Cetus Guard 2535 | -6/Cetus | Destroyed Cetus Guard 2548 | -6/Cetus | Destroyed Cetus Guard 2553 | -6/Cetus | Core integrity fell below 50% 2561 | -6/Cetus | Destroyed Cetus Guard 2654 | -6/Cetus | Discovered new exit (range 16) 2661 | -6/Cetus | Spotted Cetus Guard 2661 | -6/Cetus | Spotted Cetus Guard 2669 | -6/Cetus | Entered Archives 2671 | -6/Archives | Reached level 14 2729 | -6/Archives | Discovered new exit (range 13) 2761 | -6/Archives | Unable to access archive contents 2767 | -6/Archives | Discovered new exit (range 16) 2781 | -6/Archives | Discovered new exit (range 15) 2789 | -6/Archives | Entered Hub_04(d) 2833 | -6/Hub_04(d) | Discovered new exit (range 6) 2841 | -6/Hub_04(d) | Reached level 15 3122 | -6/Hub_04(d) | Entered Factory 3124 | -5/Factory | Reached level 16 3126 | -5/Factory | Upgraded with Propulsion slot (x1) 3131 | -5/Factory | Upgraded with Utility slot (x1) 3187 | -5/Factory | Discovered new exit (range 11) 3197 | -5/Factory | Garrison activated, responded to threat 3219 | -5/Factory | Entered another Factory area 3221 | -4/Factory | Reached level 17 3265 | -4/Factory | Garrison activated, responded to threat 3386 | -4/Factory | Upgraded with Weapon slot (x1) 3407 | -4/Factory | Build established: Sprinter 3414 | -4/Factory | Spotted B-86 Titan 3430 | -4/Factory | Discovered new exit (range 9) 3440 | -4/Factory | Entered Research 3442 | -3/Research | Reached level 18 3442 | -3/Research | Reached level 19 3529 | -3/Research | Upgraded with Propulsion slot (x1) 3546 | -3/Research | Core integrity fell below 50% 3580 | -3/Research | Destroyed 7 combat bots 3604 | -3/Research | Reached level 20 3736 | -3/Research | Spotted B-86 Titan 3766 | -3/Research | Core integrity fell below 20% 3815 | -3/Research | Self-destructed Last Messages --------------- 03772_ Upgraded: Core Integrity (+150) 03774_ Slug penetrates Wall. 03775_ Penetrated by Slug. 03775_ Slug penetrates Wall. 03787_ P-80 Master resets P-80 Master, system corruption cleaned. 03788_ Slug penetrates Wall. 03788_ Penetrated by Slug. 03792_ P-80 Master misfires. 03792_ Slug penetrates Wall. 03793_ Penetrated by Slug. 03795_ P-80 Master destroyed. 03795_ Penetrated by Slug. 03795_ Slug penetrates Wall. 03799_ Penetrated by Slug. 03802_ System corrupted: Matter fused (-6). 03806_ U-05 Engineer builds a Wall. 03810_ Slug penetrates Door. 03812_ Penetrated by Slug. 03812_ Slug penetrates Wall. 03812_ Penetrated by Slug. Map ----- +----------------------------------------------------+ | ????# #### ## #####+#?????????????? | | ????###+"#"## ## #?????????????? | | ??????# ## #?????????????? | | ??????# ## #?????????????? | | ??????# ## #?????????????? | | ??????# ##????????????? | | ??????# #????????????? | | ??????# ! #????? [????? | | ??????# |!! #???? [[???? | | ????###/#####%== #??? [[[??? | | ????# #[%="##"### h #?? ?? | | ????# " * ## #?# ? | | ????# # ## ### # | | ????# # ## h # | | ????# # [[[ ## # | | ????# # [[[ ## # | | ????######## [[[ ## !!! # | | ???????????# ### !!! """ """ # | | ???????????# ### !!! """ """ # | | ???????????# + h """ """ # | | ???????????########/### | | ???????????# ????# ### | | ???????????# ??# ##; # # % | | ???????????# # ### # # """ ][[ | | ???????????# + p #### """ [[ | | ???????????# # #####@#### """ | | ???????????# ] ??# # # | | ???????????###????# # # | | ??????????????????# # # | | ??????????????????# # # """ """ | | ??????????????????# # """ # """ """ | | ??????????????????# # "R + """ """ | | ??????????????????# # """ #^ | | ??????????????????# # # | | ??????????????????# # # | | ??????????????????# ############+##### | | ??????????????????# #?????????? ?????# | | ??????????????????# #????????????????# | | ??????????????????? ?????????????????# | | ??????????????????? ?????????????????# ####+### | | ??????????????????? ?????????????????# #??????? | | ??????????????????? ???????????????? ???????? | | ??????????????????? ?????????????? ???????? | | ??????????????????? ?????????????# ???????? | | ??????????????????? ?????????????# #####???????? | | ?????????????????????????????????# ????????????? | | ????????????????????????????????? ?????????????? | | ????????????????????????????????? ?????????????? | | ?????????????????????????????????????????????????? | | ?????????????????????????????????????????????????? | +----------------------------------------------------+ Best States ------------- Heat Dissipation 82 Energy Generation 92 Energy Capacity 800 Matter Stores 500 Matter Capacity 500 Sight Range 16 Robot Scan Range 4 Terrain Scan Density 10 Power Amplification 20 Additional Mass Support 9 Base Temperature (-) 150 Armor Coverage 225 Resistance: KI 10 Resistance: TH 10 Evasion (%) 72 Targeting Accuracy 8 Target Analysis 5 Offensive Hacking 10 Item Schematics ----------------- None Robot Schematics ------------------ None Fabricated ------------ Imp. Reaction Control System | x2 | -7/Factory | Preloaded Alien Tech Used ----------------- None Achievements -------------- Hey, That's Mine! Challenges ------------ None RPGLIKE | -11 -10 -9 -8 -7 -6 -6 -6 -6 -6 -5 -4 -3 --------- Run | Yrd Mat Mat Mat Fac Fac Ext Cet Arc Hub Fac Fac Res Levels Raised 19 | . . 3 3 1 2 3 . 1 1 1 1 3 XP Earned 32212 | 3000 770 3940 4423 1726 2812 4392 960 908 1775 1640 2000 3866 XP Spent 31200 | 750 2200 1400 5900 2705 2550 125 . . 500 2500 6475 6095 Upgrades 80 | 2 4 9 13 9 5 2 . . 1 2 14 19 Power Slot 2 | . . . 1 1 . . . . . . . . Propulsion Slot 4 | 1 . . 1 . . . . . . 1 . 1 Utility Slot 4 | . . 1 1 1 . . . . . 1 . . Weapon Slot 2 | . . 1 . . . . . . . . 1 . Core Integrity 30 | . . 6 . 7 . . . . . . 5 12 Heat Dissipation 5 | . . . 5 . . . . . . . . . Energy Generation 3 | . . . 3 . . . . . . . . . Energy Storage 6 | . . . . . 4 . . . . . . 2 Matter Storage 4 | . . . . . . . . . . . . 4 Mass Support 4 | . . 1 2 . 1 . . . . . . . Inventory Capacity 2 | 1 . . . . . . . . 1 . . . Sensor Range 2 | . . . . . . 2 . . . . . . Ranged Accuracy 8 | . 4 . . . . . . . . . 4 . KI Resistance % 2 | . . . . . . . . . . . 2 . TH Resistance % 2 | . . . . . . . . . . . 2 . Protomatter Created 1471 | . 33 158 147 65 227 324 113 155 160 . . 89 Integrity Restored 3671 | . 99 342 408 195 404 777 189 465 480 . 147 165 Core 3671 | . 99 342 408 195 404 777 189 465 480 . 147 165 Protomatter Decayed 294 | . . 35 . . 60 140 50 . . . . 9 Game ------ Seed TachyonChromaticEdition Manual? 0 Play Time 02:42:33 Cumulative 33.9 hours Start 2024.08.22 @ 00:56:58 End 2024.08.22 @ 04:06:51 Sessions 1 Manual Loads 0 Difficulty Rogue Special Mode Winter2019/RPGLIKE Game No. 16 Rogue 12 Adventurer 4 Explorer 0 Win Type - Total 1 Types 1/0/0/0/0/0/0/0/0 Lore% 15 Gallery% 27 Achievement% 35 Wizard Run 0 Options --------- Layout 0 ASCII 0 Keyboard 0 Movement Arrows Keybinds 0 Fullscreen 2 Font 32/SmallcapsGlow Map View 88x55 Zoom Use 0% Tactical HUD 1 Map Filters NONE Filters NONE Steam 1 RUN: ab7fc993-cbc9-432b-97d4-db1807665992